fUST/lending_fUST_20250628
["ID","MTS","AMOUNT","RATE_DAILY","PERIOD"]
[368250003,1751072952768,-1530.08,0.00019178,2]
[368250004,1751072952793,-460.0,0.00019178,2]
[368250005,1751072952815,-460.0,0.00019178,2]
[368250006,1751072952837,-460.0,0.00019178,2]
[368250007,1751072952858,-482.37,0.00019178,2]
[368250008,1751072952881,-500.0,0.00019178,2]
[368250009,1751072952901,-281.92125069,0.00019239,2]
[368250010,1751072952924,-500.0,0.00019451,2]
[368250011,1751072952945,-312.26525087,0.00019451,2]
[368250012,1751072952964,-460.0,0.00019452,2]
[368250013,1751072952986,-460.0,0.00019452,2]
[368250014,1751072953006,-402.89393582,0.00019452,2]
[368250015,1751072953025,-460.0,0.00019452,2]
[368250016,1751072953044,-460.0,0.00019452,2]
[368250017,1751072953064,-460.0,0.00019452,2]
[368250018,1751072953084,-460.0,0.00019452,2]
[368250019,1751072953104,-252.05293376,0.00019452,2]
[368250020,1751072953124,-460.0,0.00019452,2]
[368250021,1751072953144,-460.0,0.00019452,2]
[368250022,1751072953163,-420.65354902,0.00019452,2]
[368250023,1751072953183,-460.0,0.00019452,2]
[368250024,1751072953203,-460.0,0.00019452,2]
[368250025,1751072953222,-460.0,0.00019452,2]
[368250026,1751072953242,-460.0,0.00019452,2]
[368250027,1751072953264,-460.0,0.00019452,2]
[368250028,1751072953283,-460.0,0.00019452,2]
[368250029,1751072953304,-460.0,0.00019452,2]
[368250030,1751072953327,-460.0,0.00019452,2]
[368250031,1751072953350,-460.0,0.00019452,2]
[368250032,1751072953371,-460.0,0.00019452,2]
[368250033,1751072953391,-815.36,0.00019452,2]
[368250034,1751072953412,-460.0,0.00019452,2]
[368250035,1751072953432,-460.0,0.00019452,2]
[368250036,1751072953453,-214.24,0.00019452,2]
[368250037,1751072953474,-460.0,0.00019452,2]
[368250038,1751072953494,-460.0,0.00019452,2]
[368250039,1751072953515,-460.0,0.00019452,2]
[368250040,1751072953535,-460.0,0.00019452,2]
[368250041,1751072953556,-460.0,0.00019452,2]
[368250042,1751072953577,-460.0,0.00019452,2]
[368250043,1751072953598,-460.0,0.00019452,2]
[368250044,1751072953618,-460.0,0.00019452,2]
[368250045,1751072953639,-460.0,0.00019452,2]
[368250046,1751072953660,-460.0,0.00019452,2]
[368250047,1751072953682,-341.21598017,0.00019452,2]
[368250048,1751072953704,-460.0,0.00019452,2]
[368250049,1751072953725,-460.0,0.00019452,2]
[368250050,1751072953746,-460.0,0.00019452,2]
[368250051,1751072953767,-750.3,0.00019452,2]
[368250052,1751072953788,-460.0,0.00019452,2]
[368250053,1751072953808,-460.0,0.00019452,2]
[368250054,1751072953829,-460.0,0.00019452,2]
[368250055,1751072953849,-460.0,0.00019452,2]
[368250056,1751072953871,-460.0,0.00019452,2]
[368250057,1751072953892,-460.0,0.00019452,2]
[368250058,1751072953912,-460.0,0.00019452,2]
[368250059,1751072953933,-460.0,0.00019452,2]
[368250060,1751072953953,-460.0,0.00019452,2]
[368250061,1751072953974,-460.0,0.00019452,2]
[368250062,1751072953995,-460.0,0.00019452,2]
[368250063,1751072954016,-460.0,0.00019452,2]
[368250064,1751072954037,-475.67364333,0.00019452,2]
[368250065,1751072954058,-460.0,0.00019452,2]
[368250066,1751072954078,-460.0,0.00019452,2]
[368250067,1751072954099,-460.0,0.00019452,2]
[368250068,1751072954119,-460.0,0.00019452,2]
[368250069,1751072954141,-460.0,0.00019452,2]
[368250070,1751072954162,-702.02,0.00019452,2]
[368250071,1751072954184,-460.0,0.00019452,2]
[368250072,1751072954205,-460.0,0.00019452,2]
[368250073,1751072954226,-460.0,0.00019452,2]
[368250074,1751072954248,-460.0,0.00019452,2]
[368250075,1751072954269,-460.0,0.00019452,2]
[368250076,1751072954291,-1871.06,0.00019452,2]
[368250077,1751072954311,-421.3926114,0.00019452,2]
[368250078,1751072954332,-460.0,0.00019452,2]
[368250079,1751072954352,-460.0,0.00019452,2]
[368250080,1751072954374,-659.36,0.00019452,2]
[368250081,1751072954395,-221.16961959,0.00019452,2]
[368250082,1751072954645,-1049.99,0.00019178,2]
[368250083,1751072954668,-1492.23038041,0.00019452,2]
[368250084,1751072954688,-460.0,0.00019452,2]
[368250085,1751072954713,-975.83,0.00019452,2]
[368250086,1751072954735,-636.39,0.00019452,2]
[368250087,1751072954755,-460.0,0.00019452,2]
[368250088,1751072954776,-513.53,0.00019452,2]
[368250089,1751072954795,-460.0,0.00019452,2]
[368250090,1751072954815,-460.0,0.00019452,2]
[368250091,1751072954836,-556.74,0.00019452,2]
[368250092,1751072954857,-460.0,0.00019452,2]
[368250093,1751072954878,-460.0,0.00019452,2]
[368250094,1751072954899,-460.0,0.00019452,2]
[368250095,1751072954921,-460.0,0.00019452,2]
[368250096,1751072954942,-460.0,0.00019452,2]
[368250097,1751072954962,-294.09410533,0.00019452,2]
[368250098,1751072954983,-460.0,0.00019452,2]
[368250099,1751072955003,-460.0,0.00019452,2]
[368250100,1751072955023,-460.0,0.00019452,2]
[368250101,1751072955177,-601.78491215,0.00019452,2]
[368250102,1751072955198,-1624.17,0.00019452,2]
[368250103,1751072955220,-649.34,0.00019452,2]
[368250104,1751072955240,-863.24,0.00019452,2]
[368250105,1751072955262,-2379.92,0.00019452,2]
[368250106,1751072955283,-460.0,0.00019452,2]
[368250107,1751072955303,-1981.49,0.00019452,2]
[368250108,1751072955324,-460.0,0.00019452,2]
[368250109,1751072955345,-185.44766805,0.00019452,2]
[368250110,1751072955366,-460.0,0.00019452,2]
[368250111,1751072955386,-460.0,0.00019452,2]
[368250112,1751072955406,-790.84,0.00019452,2]
[368250113,1751072955426,-460.0,0.00019452,2]
[368250114,1751072955446,-2724.83,0.00019452,2]
[368250115,1751072955467,-562.1,0.00019452,2]
[368250116,1751072955488,-460.0,0.00019452,2]
[368250117,1751072955507,-460.0,0.00019452,2]
[368250118,1751072955528,-546.04,0.00019452,2]
[368250119,1751072955549,-460.0,0.00019452,2]
[368250120,1751072955570,-460.0,0.00019452,2]
[368250121,1751072955590,-460.0,0.00019452,2]
[368250122,1751072955611,-632.47,0.00019452,2]
[368250123,1751072955630,-460.0,0.00019452,2]
[368250124,1751072955651,-469.16716367,0.00019452,2]
[368250125,1751072955671,-1362.65,0.00019452,2]
[368250126,1751072955692,-1983.99,0.00019452,2]
[368250127,1751072955717,-460.0,0.00019452,2]
[368250128,1751072955738,-460.0,0.00019452,2]
[368250129,1751072955760,-460.0,0.00019452,2]
[368250130,1751072955782,-745.95,0.00019452,2]
[368250131,1751072955804,-4509.11,0.00019452,2]
[368250132,1751072955825,-460.0,0.00019452,2]
[368250133,1751072955845,-460.0,0.00019452,2]
[368250134,1751072955867,-2624.6501041,0.00019452,2]
[368250135,1751072961120,-460.0,0.00019178,2]
[368250136,1751072961142,-460.0,0.00019178,2]
[368250137,1751072961172,-460.0,0.00019178,2]
[368250138,1751072961195,-438.99,0.00019178,2]
[368250139,1751072961215,-645.83,0.00019178,2]
[368250140,1751072961237,-460.0,0.00019178,2]
[368250141,1751072961259,-460.0,0.00019178,2]
[368250142,1751072961282,-24.9498959,0.00019452,2]
[368250143,1751072961302,-460.0,0.00019452,2]
[368250144,1751072961323,-532.39,0.00019452,2]
[368250145,1751072961343,-460.0,0.00019452,2]
[368250146,1751072961363,-460.0,0.00019452,2]
[368250147,1751072961384,-460.0,0.00019452,2]
[368250148,1751072961407,-4260.63,0.00019452,2]
[368250149,1751072961428,-548.37,0.00019452,2]
[368250150,1751072961449,-885.19,0.00019452,2]
[368250151,1751072961471,-502.26,0.00019452,2]
[368250152,1751072961492,-1031.43,0.00019452,2]
[368250153,1751072961513,-460.0,0.00019452,2]
[368250154,1751072961535,-460.0,0.00019452,2]
[368250155,1751072961556,-532.31,0.00019452,2]
[368250156,1751072961577,-460.0,0.00019452,2]
[368250157,1751072961599,-1028.19,0.00019452,2]
[368250158,1751072961620,-2647.1,0.00019452,2]
[368250159,1751072961640,-388.34961676,0.00019452,2]
[368250160,1751072967113,-460.0,0.00019178,2]
[368250161,1751072967134,-460.0,0.00019178,2]
[368250162,1751072967155,-1921.92,0.00019178,2]
[368250163,1751072967179,-1535.0,0.00019178,2]
[368250164,1751072967201,-580.56,0.00019178,2]
[368250165,1751072967221,-109.07038324,0.00019452,2]
[368250166,1751072967244,-2435.39,0.00019452,2]
[368250167,1751072967266,-1372.11,0.00019452,2]
[368250168,1751072967287,-514.85,0.00019452,2]
[368250169,1751072967307,-460.0,0.00019452,2]
[368250170,1751072967329,-835.97,0.00019452,2]
[368250171,1751072967353,-2961.6,0.00019452,2]
[368250172,1751072967373,-460.0,0.00019452,2]
[368250173,1751072967394,-460.0,0.00019452,2]
[368250174,1751072967414,-460.0,0.00019452,2]
[368250175,1751072967435,-460.0,0.00019452,2]
[368250176,1751072967458,-525.47,0.00019452,2]
[368250177,1751072967480,-460.0,0.00019452,2]
[368250178,1751072967500,-460.0,0.00019452,2]
[368250179,1751072967520,-460.0,0.00019452,2]
[368250180,1751072967541,-1459.3,0.00019452,2]
[368250181,1751072967563,-1530.08,0.00019452,2]
[368250182,1751072967584,-460.0,0.00019452,2]
[368250183,1751072967604,-460.0,0.00019452,2]
[368250184,1751072967624,-482.37,0.00019452,2]
[368250185,1751072967645,-528.4,0.00019452,2]
[368250186,1751072967666,-1049.99,0.00019452,2]
[368250187,1751072967688,-460.0,0.00019452,2]
[368250188,1751072967713,-460.0,0.00019452,2]
[368250189,1751072967734,-460.0,0.00019452,2]
[368250190,1751072967756,-645.83,0.00019452,2]
[368250191,1751072967777,-460.0,0.00019452,2]
[368250192,1751072967801,-460.0,0.00019452,2]
[368250193,1751072967822,-176.56,0.00019452,2]
[368250194,1751072967843,-202.54,0.00019452,2]
[368250195,1751072967864,-1921.92,0.00019452,2]
[368250196,1751072968064,-1535.0,0.00019452,2]
[368250197,1751072968085,-2615.20433976,0.00019626,2]
[368250198,1751072968105,-13633.88046903,0.00019626,2]
[368250199,1751072968125,-500.0,0.00019717,2]
[368250200,1751072968145,-500.0,0.00019717,2]
[368250201,1751072968165,-460.0,0.00019726,2]
[368250202,1751072968186,-367.42878218,0.00019726,2]
[368250203,1751072968206,-460.0,0.00019726,2]
[368250204,1751072968226,-403.16638871,0.00019726,2]
[368250205,1751072968246,-460.0,0.00019726,2]
[368250206,1751072968266,-460.0,0.00019726,2]
[368250207,1751072968285,-423.0009509,0.00019726,2]
[368250208,1751072968306,-460.0,0.00019726,2]
[368250209,1751072968326,-460.0,0.00019726,2]
[368250210,1751072968345,-280.78734991,0.00019726,2]
[368250211,1751072968366,-460.0,0.00019726,2]
[368250212,1751072968387,-460.0,0.00019726,2]
[368250213,1751072968407,-460.0,0.00019726,2]
[368250214,1751072968426,-460.0,0.00019726,2]
[368250215,1751072968446,-460.0,0.00019726,2]
[368250216,1751072968467,-460.0,0.00019726,2]
[368250217,1751072968490,-815.36,0.00019726,2]
[368250218,1751072968512,-460.0,0.00019726,2]
[368250219,1751072968534,-468.14,0.00019726,2]
[368250220,1751072968555,-386.52835291,0.00019726,2]
[368250221,1751072968578,-460.0,0.00019726,2]
[368250222,1751072968601,-460.0,0.00019726,2]
[368250223,1751072968623,-460.0,0.00019726,2]
[368250224,1751072968644,-460.0,0.00019726,2]
[368250225,1751072968666,-460.0,0.00019726,2]
[368250226,1751072968686,-422.28546775,0.00019726,2]
[368250227,1751072968710,-460.0,0.00019726,2]
[368250228,1751072968731,-460.0,0.00019726,2]
[368250229,1751072968752,-460.0,0.00019726,2]
[368250230,1751072968772,-750.3,0.00019726,2]
[368250231,1751072968793,-460.0,0.00019726,2]
[368250232,1751072968813,-460.0,0.00019726,2]
[368250233,1751072968834,-460.0,0.00019726,2]
[368250234,1751072968854,-327.25236905,0.00019726,2]
[368250235,1751072968874,-460.0,0.00019726,2]
[368250236,1751072968895,-460.0,0.00019726,2]
[368250237,1751072968915,-460.0,0.00019726,2]
[368250238,1751072968938,-460.0,0.00019726,2]
[368250239,1751072968960,-460.0,0.00019726,2]
[368250240,1751072968980,-460.0,0.00019726,2]
[368250241,1751072969002,-460.0,0.00019726,2]
[368250242,1751072969026,-460.0,0.00019726,2]
[368250243,1751072969047,-460.0,0.00019726,2]
[368250244,1751072969066,-207.15453225,0.00019726,2]
[368250245,1751072969086,-460.0,0.00019726,2]
[368250246,1751072969107,-460.0,0.00019726,2]
[368250247,1751072969129,-460.0,0.00019726,2]
[368250248,1751072969150,-460.0,0.00019726,2]
[368250249,1751072969171,-1871.06,0.00019726,2]
[368250250,1751072969193,-460.0,0.00019726,2]
[368250251,1751072969214,-360.87957347,0.00019726,2]
[368250252,1751072969234,-460.0,0.00019726,2]
[368250253,1751072969255,-636.39,0.00019726,2]
[368250254,1751072969275,-460.0,0.00019726,2]
[368250255,1751072969294,-460.0,0.00019726,2]
[368250256,1751072969314,-379.09681717,0.00019726,2]
[368250257,1751072973084,-460.0,0.00019178,2]
[368250258,1751072973105,-580.56,0.00019452,2]
[368250259,1751072973126,-80.90318283,0.00019726,2]
[368250260,1751072973147,-556.74,0.00019726,2]
[368250261,1751072973168,-460.0,0.00019726,2]
[368250262,1751072973188,-460.0,0.00019726,2]
[368250263,1751072973209,-460.0,0.00019726,2]
[368250264,1751072973229,-460.0,0.00019726,2]
[368250265,1751072973250,-460.0,0.00019726,2]
[368250266,1751072973271,-460.0,0.00019726,2]
[368250267,1751072973292,-649.34,0.00019726,2]
[368250268,1751072973313,-863.24,0.00019726,2]
[368250269,1751072973335,-2379.92,0.00019726,2]
[368250270,1751072973356,-460.0,0.00019726,2]
[368250271,1751072973378,-1981.49,0.00019726,2]
[368250272,1751072973398,-460.0,0.00019726,2]
[368250273,1751072973419,-460.0,0.00019726,2]
[368250274,1751072973439,-460.0,0.00019726,2]
[368250275,1751072973460,-790.84,0.00019726,2]
[368250276,1751072973481,-460.0,0.00019726,2]
[368250277,1751072973501,-2380.7530907,0.00019726,2]
[368250329,1751073038330,-1200.0,0.00019177,2]
[368250330,1751073038339,-300.0,0.00019177,2]
[368250331,1751073038348,-460.0,0.00019178,2]
[368250332,1751073038358,-460.0,0.00019178,2]
[368250333,1751073038367,-460.0,0.00019178,2]
[368250334,1751073038376,-460.0,0.00019178,2]
[368250335,1751073038385,-460.0,0.00019178,2]
[368250336,1751073038395,-460.0,0.00019178,2]
[368250337,1751073038404,-560.03,0.00019178,2]
[368250338,1751073038413,-460.0,0.00019178,2]
[368250339,1751073038422,-460.0,0.00019178,2]
[368250340,1751073038431,-834.51,0.00019178,2]
[368250341,1751073038441,-460.0,0.00019178,2]
[368250342,1751073038451,-1911.92,0.00019178,2]
[368250343,1751073038460,-613.64,0.00019178,2]
[368250344,1751073038469,-460.0,0.00019178,2]
[368250345,1751073038478,-460.0,0.00019178,2]
[368250346,1751073038487,-598.93,0.00019178,2]
[368250347,1751073038498,-460.0,0.00019178,2]
[368250348,1751073038508,-460.0,0.00019178,2]
[368250349,1751073038517,-460.0,0.00019178,2]
[368250350,1751073038526,-2082.43,0.00019178,2]
[368250351,1751073038535,-574.78,0.00019178,2]
[368250352,1751073038544,-461.80433487,0.00019178,2]
[368250353,1751073038554,-2576.25,0.00019178,2]
[368250354,1751073038563,-460.0,0.00019178,2]
[368250355,1751073038572,-956.52,0.00019178,2]
[368250356,1751073038581,-460.0,0.00019178,2]
[368250357,1751073038590,-460.0,0.00019178,2]
[368250358,1751073038600,-460.0,0.00019452,2]
[368250359,1751073038609,-460.0,0.00019452,2]
[368250360,1751073038619,-460.0,0.00019452,2]
[368250361,1751073038628,-460.0,0.00019452,2]
[368250362,1751073038637,-560.03,0.00019452,2]
[368250363,1751073038647,-460.0,0.00019452,2]
[368250364,1751073038656,-460.0,0.00019452,2]
[368250365,1751073038665,-834.51,0.00019452,2]
[368250366,1751073038674,-460.0,0.00019452,2]
[368250367,1751073038684,-1911.92,0.00019452,2]
[368250368,1751073038693,-613.64,0.00019452,2]
[368250369,1751073038703,-460.0,0.00019452,2]
[368250370,1751073038712,-460.0,0.00019452,2]
[368250371,1751073038721,-598.93,0.00019452,2]
[368250372,1751073038732,-460.0,0.00019452,2]
[368250373,1751073038743,-460.0,0.00019452,2]
[368250374,1751073038752,-2082.43,0.00019452,2]
[368250375,1751073038761,-574.78,0.00019452,2]
[368250376,1751073038771,-2576.25,0.00019452,2]
[368250377,1751073038782,-460.0,0.00019452,2]
[368250378,1751073038791,-956.52,0.00019452,2]
[368250379,1751073038800,-350.0,0.00019725,2]
[368250380,1751073038809,-562.1,0.00019726,2]
[368250381,1751073038819,-460.0,0.00019726,2]
[368250382,1751073038828,-546.04,0.00019726,2]
[368250383,1751073038837,-460.0,0.00019726,2]
[368250384,1751073038847,-460.0,0.00019726,2]
[368250385,1751073038856,-460.0,0.00019726,2]
[368250386,1751073038866,-460.0,0.00019726,2]
[368250387,1751073038875,-1362.65,0.00019726,2]
[368250388,1751073038884,-1983.99,0.00019726,2]
[368250389,1751073038894,-460.0,0.00019726,2]
[368250390,1751073038903,-460.0,0.00019726,2]
[368250391,1751073038913,-460.0,0.00019726,2]
[368250392,1751073038923,-745.95,0.00019726,2]
[368250393,1751073038932,-4509.11,0.00019726,2]
[368250394,1751073038941,-460.0,0.00019726,2]
[368250395,1751073038951,-460.0,0.00019726,2]
[368250396,1751073038960,-2649.6,0.00019726,2]
[368250397,1751073038971,-460.0,0.00019726,2]
[368250398,1751073038980,-532.39,0.00019726,2]
[368250399,1751073038990,-460.0,0.00019726,2]
[368250400,1751073039000,-4260.63,0.00019726,2]
[368250401,1751073039009,-460.0,0.00019726,2]
[368250402,1751073039018,-548.37,0.00019726,2]
[368250403,1751073039027,-885.19,0.00019726,2]
[368250404,1751073039036,-502.26,0.00019726,2]
[368250405,1751073039045,-1031.43,0.00019726,2]
[368250406,1751073039055,-460.0,0.00019726,2]
[368250407,1751073039064,-460.0,0.00019726,2]
[368250408,1751073039073,-532.31,0.00019726,2]
[368250409,1751073039083,-460.0,0.00019726,2]
[368250410,1751073039092,-1028.19,0.00019726,2]
[368250411,1751073039101,-497.42,0.00019726,2]
[368250412,1751073039110,-2647.1,0.00019726,2]
[368250413,1751073039268,-2435.39,0.00019726,2]
[368250414,1751073039278,-1372.11,0.00019726,2]
[368250415,1751073039288,-514.85,0.00019726,2]
[368250416,1751073039298,-415.9782029,0.00019726,2]
[368250417,1751073039307,-835.97,0.00019726,2]
[368250418,1751073039316,-2961.6,0.00019726,2]
[368250419,1751073039325,-450.29785659,0.00019726,2]
[368250420,1751073039334,-460.0,0.00019726,2]
[368250421,1751073039344,-460.0,0.00019726,2]
[368250422,1751073039353,-525.47,0.00019726,2]
[368250423,1751073039363,-460.0,0.00019726,2]
[368250424,1751073039372,-401.29482588,0.00019726,2]
[368250425,1751073039381,-460.0,0.00019726,2]
[368250426,1751073039390,-1459.3,0.00019726,2]
[368250427,1751073039399,-1530.08,0.00019726,2]
[368250428,1751073039409,-460.0,0.00019726,2]
[368250429,1751073039418,-460.0,0.00019726,2]
[368250430,1751073039428,-482.37,0.00019726,2]
[368250431,1751073039437,-1049.99,0.00019726,2]
[368250432,1751073039446,-460.0,0.00019726,2]
[368250433,1751073039455,-460.0,0.00019726,2]
[368250434,1751073039464,-645.83,0.00019726,2]
[368250435,1751073039473,-460.0,0.00019726,2]
[368250436,1751073039482,-460.0,0.00019726,2]
[368250437,1751073039491,-1921.92,0.00019726,2]
[368250438,1751073039500,-1535.0,0.00019726,2]
[368250439,1751073039509,-580.56,0.00019726,2]
[368250440,1751073039519,-460.0,0.00019726,2]
[368250441,1751073039527,-460.0,0.00019726,2]
[368250442,1751073039538,-460.0,0.00019726,2]
[368250443,1751073039547,-460.0,0.00019726,2]
[368250444,1751073039556,-560.03,0.00019726,2]
[368250445,1751073039566,-460.0,0.00019726,2]
[368250446,1751073039575,-460.0,0.00019726,2]
[368250447,1751073039585,-834.51,0.00019726,2]
[368250448,1751073039594,-1911.92,0.00019726,2]
[368250449,1751073039603,-613.64,0.00019726,2]
[368250450,1751073039612,-460.0,0.00019726,2]
[368250451,1751073039621,-460.0,0.00019726,2]
[368250452,1751073039631,-559.07313744,0.00019726,2]
[368250453,1751073039640,-598.93,0.00019726,2]
[368250454,1751073039649,-460.0,0.00019726,2]
[368250455,1751073039659,-383.07592919,0.00019726,2]
[368250456,1751073039668,-2082.43,0.00019726,2]
[368250457,1751073039677,-574.78,0.00019726,2]
[368250458,1751073039687,-2576.25,0.00019726,2]
[368250459,1751073039696,-460.0,0.00019726,2]
[368250460,1751073039706,-956.52,0.00019726,2]
[368250461,1751073039715,-408.53172139,0.00019726,2]
[368250462,1751073039725,-500.0,0.0001973,2]
[368250463,1751073039738,-8670.32949013,0.000199,2]
[368250464,1751073039748,-460.0,0.0002,2]
[368250465,1751073039757,-460.0,0.0002,2]
[368250466,1751073039767,-460.0,0.0002,2]
[368250467,1751073039778,-601.84,0.0002,2]
[368250468,1751073039787,-460.0,0.0002,2]
[368250469,1751073039797,-460.0,0.0002,2]
[368250470,1751073039807,-460.0,0.0002,2]
[368250471,1751073039816,-460.0,0.0002,2]
[368250472,1751073039826,-460.0,0.0002,2]
[368250473,1751073039835,-460.0,0.0002,2]
[368250474,1751073039845,-460.0,0.0002,2]
[368250475,1751073039855,-460.0,0.0002,2]
[368250476,1751073039864,-460.0,0.0002,2]
[368250477,1751073039873,-460.0,0.0002,2]
[368250478,1751073039882,-750.3,0.0002,2]
[368250479,1751073039891,-460.0,0.0002,2]
[368250480,1751073039901,-460.0,0.0002,2]
[368250481,1751073039911,-460.0,0.0002,2]
[368250482,1751073039921,-460.0,0.0002,2]
[368250483,1751073039931,-460.0,0.0002,2]
[368250484,1751073039940,-460.0,0.0002,2]
[368250485,1751073039949,-460.0,0.0002,2]
[368250486,1751073039959,-460.0,0.0002,2]
[368250487,1751073039968,-460.0,0.0002,2]
[368250488,1751073039978,-460.0,0.0002,2]
[368250489,1751073039987,-460.0,0.0002,2]
[368250490,1751073039999,-460.0,0.0002,2]
[368250491,1751073040008,-340.38342881,0.0002,2]
[368250492,1751073040017,-460.0,0.0002,2]
[368250493,1751073040027,-541.62700724,0.0002,2]
[368250494,1751073040036,-649.34,0.0002,2]
[368250495,1751073040046,-1981.49,0.0002,2]
[368250496,1751073040055,-460.0,0.0002,2]
[368250497,1751073040065,-790.84,0.0002,2]
[368250498,1751073040074,-548.06,0.0002,2]
[368250499,1751073040083,-562.1,0.0002,2]
[368250500,1751073040092,-546.04,0.0002,2]
[368250501,1751073040101,-460.0,0.0002,2]
[368250502,1751073040110,-460.0,0.0002,2]
[368250503,1751073040120,-460.0,0.0002,2]
[368250504,1751073040129,-460.0,0.0002,2]
[368250505,1751073040138,-1362.65,0.0002,2]
[368250506,1751073040147,-1983.99,0.0002,2]
[368250507,1751073040157,-460.0,0.0002,2]
[368250508,1751073040167,-460.0,0.0002,2]
[368250509,1751073040176,-745.95,0.0002,2]
[368250510,1751073040186,-4509.11,0.0002,2]
[368250511,1751073040195,-460.0,0.0002,2]
[368250512,1751073040204,-460.0,0.0002,2]
[368250513,1751073040214,-2649.6,0.0002,2]
[368250514,1751073040223,-460.0,0.0002,2]
[368250515,1751073040232,-532.39,0.0002,2]
[368250516,1751073040242,-460.0,0.0002,2]
[368250517,1751073040252,-4260.63,0.0002,2]
[368250518,1751073040262,-548.37,0.0002,2]
[368250519,1751073040272,-885.19,0.0002,2]
[368250520,1751073040281,-502.26,0.0002,2]
[368250521,1751073040291,-1031.43,0.0002,2]
[368250522,1751073040301,-460.0,0.0002,2]
[368250523,1751073040310,-460.0,0.0002,2]
[368250524,1751073040319,-532.31,0.0002,2]
[368250525,1751073040329,-460.0,0.0002,2]
[368250526,1751073040338,-1028.19,0.0002,2]
[368250527,1751073040348,-497.42,0.0002,2]
[368250528,1751073040357,-2647.1,0.0002,2]
[368250529,1751073040366,-2435.39,0.0002,2]
[368250530,1751073040376,-1372.11,0.0002,2]
[368250531,1751073040385,-514.85,0.0002,2]
[368250532,1751073040394,-835.97,0.0002,2]
[368250533,1751073040406,-2961.6,0.0002,2]
[368250534,1751073040415,-547.1896355,0.0002,2]
[368250535,1751073040424,-525.47,0.0002,2]
[368250536,1751073040434,-460.0,0.0002,2]
[368250537,1751073040442,-1459.3,0.0002,2]
[368250538,1751073040452,-1530.08,0.0002,2]
[368250539,1751073040461,-460.0,0.0002,2]
[368250540,1751073040470,-460.0,0.0002,2]
[368250541,1751073040479,-482.37,0.0002,2]
[368250542,1751073040488,-1049.99,0.0002,2]
[368250543,1751073040499,-460.0,0.0002,2]
[368250544,1751073040509,-233.58,0.0002,2]
[368250545,1751073040518,-645.83,0.0002,2]
[368250546,1751073040527,-460.0,0.0002,2]
[368250547,1751073040536,-233.70864593,0.0002,2]
[368250548,1751073040546,-1921.92,0.0002,2]
[368250549,1751073040555,-1535.0,0.0002,2]
[368250550,1751073040564,-580.56,0.0002,2]
[368250551,1751073040574,-460.0,0.0002,2]
[368250552,1751073040583,-460.0,0.0002,2]
[368250553,1751073040593,-560.03,0.0002,2]